bitfinex-derivatives/quotes_SOLF0:USTF0_20251101
["timestamp","ask_amount","ask_price","bid_price","bid_amount"]
[1762028259734,2.69,186.52,186.45,2.13]
[1762028268637,4.76197366,186.5,186.45,2.13]
[1762028269230,2.29250427,186.49,186.45,2.13]
[1762028269433,2.29250427,186.48,186.45,2.13]
[1762028269632,2.29250427,186.47,186.45,2.13]
[1762028269833,2.29250427,186.46,186.45,2.13]
[1762028271944,4.76197366,186.5,186.45,2.13]
[1762028272241,2.29185786,186.49,186.45,2.13]
[1762028272542,2.29185786,186.48,186.45,2.13]
[1762028272740,2.29185786,186.47,186.45,2.13]
[1762028272941,2.29185786,186.46,186.45,2.13]
[1762028274448,2.29126419,186.46,186.45,2.13]
[1762028275641,2.07197366,186.53,186.45,2.13]
[1762028275841,2.29118086,186.52,186.45,2.13]
[1762028276045,2.29118086,186.51,186.45,2.13]
[1762028276247,2.29118086,186.5,186.45,2.13]
[1762028276544,2.29118086,186.49,186.45,2.13]
[1762028276750,2.29109875,186.48,186.45,2.13]
[1762028276941,2.29109875,186.47,186.45,2.13]
[1762028277138,4.76197366,186.53,186.45,2.13]
[1762028277341,2.29109875,186.52,186.45,2.13]
[1762028277639,2.29107508,186.51,186.45,2.13]
[1762028277836,2.29107508,186.5,186.45,2.13]
[1762028278050,2.29107508,186.49,186.45,2.13]
[1762028278348,2.29107508,186.48,186.45,2.13]
[1762028278549,2.29107508,186.47,186.45,2.13]
[1762028278748,4.76197366,186.53,186.45,2.13]
[1762028279049,2.29110917,186.52,186.45,2.13]
[1762028279351,4.76197366,186.53,186.45,2.13]
[1762028279352,2.29110917,186.51,186.45,2.13]
[1762028279649,2.29110917,186.5,186.45,2.13]
[1762028279841,2.2912074,186.49,186.45,2.13]
[1762028280040,2.2912074,186.48,186.45,2.13]
[1762028280236,2.69,186.53,186.46,2.13]
[1762028280441,2.29139245,186.52,186.46,2.13]
[1762028280644,2.29139245,186.51,186.46,2.13]
[1762028280844,2.29139245,186.5,186.46,2.13]
[1762028281052,2.29116672,186.49,186.46,2.13]
[1762028281252,2.2913753,186.48,186.46,2.13]
[1762028281450,2.69,186.53,186.46,2.13]
[1762028281753,2.2913753,186.52,186.46,2.13]
[1762028281948,2.2913753,186.51,186.46,2.13]
[1762028282149,2.2913753,186.5,186.46,2.13]
[1762028282346,2.2913753,186.49,186.46,2.13]
[1762028282553,2.2913753,186.48,186.46,2.13]
[1762028282752,2.69,186.53,186.46,2.13]
[1762028282944,2.29144182,186.52,186.46,2.13]
[1762028283146,2.29144182,186.51,186.46,2.13]
[1762028283343,2.29152374,186.5,186.46,2.13]
[1762028283646,2.29152374,186.49,186.46,2.13]
[1762028283842,2.29152374,186.48,186.46,2.13]
[1762028284054,2.69,186.53,186.46,2.13]
[1762028284256,2.29152374,186.52,186.46,2.13]
[1762028284553,2.29152374,186.51,186.46,2.13]
[1762028284754,2.29152374,186.5,186.46,2.13]
[1762028284956,2.29152374,186.49,186.46,2.13]
[1762028285156,2.29152374,186.48,186.46,2.13]
[1762028285359,2.69,186.53,186.46,2.13]
[1762028285554,2.29207095,186.52,186.46,2.13]
[1762028285750,2.29207095,186.51,186.46,2.13]
[1762028285951,2.29207095,186.5,186.46,2.13]
[1762028286150,2.29207095,186.49,186.46,2.13]
[1762028286358,2.29207095,186.48,186.47,2.13]
[1762028286558,2.29248258,186.48,186.47,2.13]
[1762028291362,2.29248258,186.48,186.47,6.48108894]
[1762028292762,2.29248258,186.48,186.47,2.13]
[1762028292966,2.29248258,186.48,186.47,6.48436316]
[1762028293357,2.29248258,186.48,186.47,6.48653308]
[1762028293668,2.29248258,186.48,186.47,81.96653308]
[1762028297872,2.29248258,186.48,186.47,77.61]
[1762028298076,2.29248258,186.48,186.47,81.9732486]
[1762028298477,2.69,186.53,186.48,2.14]
[1762028298664,2.74,186.52,186.49,6.5032486]
[1762028298869,2.74,186.52,186.49,2.14]
[1762028299066,2.30066686,186.51,186.49,2.14]
[1762028299273,2.30066686,186.5,186.49,2.14]
[1762028299468,2.30066686,186.5,186.49,6.50574567]
[1762028301780,2.30230174,186.5,186.49,6.50574567]
[1762028303780,2.30230174,186.5,186.49,4.36574567]
[1762028303781,2.3025002,186.5,186.49,4.36574567]
[1762028304581,2.3025002,186.5,186.49,6.50574567]
[1762028305083,2.30263096,186.5,186.49,6.50574567]
[1762028305484,2.30270838,186.5,186.49,6.50574567]
[1762028306283,2.30270838,186.5,186.49,6.50767738]
[1762028306980,5.02280148,186.5,186.49,4.36767738]
[1762028307283,5.02280148,186.5,186.49,79.82860461]
[1762028307673,5.02280148,186.5,186.49,81.96860461]
[1762028308186,5.02289922,186.5,186.49,81.96860461]
[1762028308784,5.02289922,186.5,186.49,81.96978139]
[1762028309383,5.02289922,186.5,186.49,81.97003481]
[1762028309576,5.02289922,186.5,186.49,79.83003481]
[1762028310389,5.02317792,186.5,186.49,79.83003481]
[1762028310989,5.02317792,186.5,186.49,79.83020934]
[1762028311289,2.30317792,186.5,186.49,81.97020934]
[1762028312188,2.72,186.52,186.49,81.97020934]
[1762028312397,5.02351906,186.51,186.5,4.37715681]
[1762028313480,5.02382759,186.51,186.5,4.37715681]
[1762028314377,5.0240663,186.51,186.5,4.37715681]
[1762028316196,5.0240663,186.51,186.49,77.6]
[1762028316384,2.72,186.51,186.5,4.37718602]
[1762028316585,2.30440969,186.51,186.5,6.51718602]
[1762028317285,5.14440969,186.51,186.5,4.37718602]
[1762028319096,5.14481793,186.51,186.5,4.37718602]
[1762028321100,5.14537883,186.51,186.5,4.37718602]
[1762028322202,2.84,186.5,186.49,75.46]
[1762028322497,5.14537883,186.5,186.49,79.79906442]
[1762028323602,5.14614067,186.5,186.49,79.79906442]
[1762028325098,5.14614067,186.5,186.49,79.79993591]
[1762028325504,2.30614067,186.5,186.49,75.46]
[1762028326201,5.14614067,186.5,186.49,75.46]
[1762028327306,5.14614067,186.5,186.49,79.79813201]
[1762028328002,5.14614067,186.5,186.49,79.79832019]
[1762028332897,5.14614067,186.5,186.49,75.46]
[1762028333405,5.14418647,186.5,186.49,75.46]
[1762028339116,2.84,186.5,186.49,75.46]
[1762028339317,5.14368337,186.5,186.49,75.46]
[1762028340715,2.84,186.49,186.46,2.14]
[1762028341018,5.14368337,186.48,186.47,4.32534525]
[1762028341620,2.84,186.47,186.45,75.46]
[1762028341918,2.30368337,186.46,186.45,75.46]
[1762028342117,2.30368337,186.46,186.45,79.78611517]
[1762028342414,5.1429163,186.46,186.45,79.78611517]
[1762028342620,5.1429163,186.46,186.41,167.81990217]
[1762028342621,2.84,186.45,186.41,167.81990217]
[1762028342815,2.84,186.43,186.42,2.14]
[1762028343021,2.30291991,186.43,186.42,4.32730845]
[1762028343417,2.3017894,186.43,186.42,6.46730845]
[1762028343721,2.3017894,186.43,186.42,81.92730845]
[1762028345031,2.84,186.46,186.43,2.14]
[1762028345216,2.30115043,186.45,186.43,2.14]
[1762028345418,2.30115043,186.44,186.43,2.14]
[1762028345609,2.30115043,186.44,186.43,6.46160653]
[1762028347725,2.84,186.48,186.43,6.46160653]
[1762028347922,5.04975374,186.47,186.42,75.46]
[1762028348119,2.29975374,186.46,186.43,4.31987579]
[1762028348315,2.29972748,186.45,186.43,2.14]
[1762028348515,2.29972748,186.44,186.43,2.14]
[1762028348716,2.29972748,186.44,186.43,6.45923757]
[1762028349428,2.29972748,186.44,186.43,2.14]
[1762028350927,2.29972748,186.44,186.43,6.45747276]
[1762028351319,2.29972748,186.44,186.43,6.45758169]
[1762028354223,2.29972748,186.44,186.43,6.45609297]
[1762028354930,2.29972748,186.44,186.43,2.14]
[1762028355228,2.29972748,186.44,186.43,6.4559966]
[1762028356433,2.29839667,186.44,186.43,6.4559966]
[1762028357132,2.29839667,186.44,186.43,6.45440021]
[1762028358528,3.23589879,186.57,186.44,2.14]
[1762028358731,2.75,186.55,186.46,2.14]
[1762028358932,2.29854258,186.56,186.46,2.14]
[1762028358933,2.75,186.53,186.46,2.14]
[1762028359226,2.75,186.51,186.46,2.14]
[1762028359423,3.23589879,186.57,186.46,2.14]
[1762028359424,5.04854258,186.5,186.46,2.14]
[1762028359624,2.29854258,186.49,186.46,2.14]
[1762028359825,5.04854258,186.48,186.46,2.14]
[1762028360034,2.29854258,186.47,186.46,2.14]
[1762028360225,2.29854258,186.47,186.46,6.45362482]
[1762028360432,2.29854258,186.47,186.46,6.45663805]
[1762028361733,5.09854258,186.47,186.46,4.31663805]
[1762028361933,5.09854258,186.47,186.45,77.62]
[1762028362235,5.09854258,186.46,186.45,75.48]
[1762028362930,2.29854258,186.46,186.45,77.62]
[1762028363536,2.29854258,186.46,186.45,81.93852589]
[1762028365037,2.29854258,186.46,186.45,77.62]
[1762028365230,2.29854258,186.46,186.45,81.93875832]
[1762028367229,2.29982236,186.46,186.45,81.93875832]
[1762028369233,2.29982236,186.46,186.45,77.62]
[1762028369635,2.30022801,186.46,186.45,77.62]
[1762028370238,2.30040011,186.46,186.45,77.62]
[1762028370438,2.30041859,186.46,186.45,77.62]
[1762028370830,2.30042468,186.46,186.45,77.62]
[1762028372035,2.8,186.48,186.45,77.62]
[1762028372236,5.10039288,186.47,186.45,77.62]
[1762028372437,2.30039288,186.46,186.45,77.62]
[1762028373447,2.30039288,186.46,186.45,81.94323271]
[1762028373637,2.3005923,186.46,186.45,79.80323271]
[1762028374338,2.8,186.51,186.46,2.14]
[1762028374547,5.10068512,186.5,186.47,2.14]
[1762028374736,2.30068512,186.49,186.48,75.46]
[1762028375239,2.8,186.5,186.48,75.46]
[1762028375434,2.30080177,186.49,186.48,77.6]
[1762028376736,2.30083943,186.49,186.48,77.6]
[1762028377247,2.30096768,186.49,186.48,77.6]
[1762028378347,2.30089616,186.49,186.48,77.6]
[1762028379246,2.9,186.52,186.48,77.6]
[1762028379444,5.20088201,186.51,186.48,77.6]
[1762028379646,2.30088201,186.5,186.48,77.6]
[1762028379944,2.30088201,186.49,186.48,77.6]
[1762028380646,2.30086128,186.49,186.48,77.6]
[1762028381050,2.3008613,186.49,186.48,77.6]
[1762028381346,2.30086589,186.49,186.48,77.6]
[1762028383242,5.20086589,186.49,186.48,77.6]
[1762028385150,2.30086589,186.49,186.48,77.6]
[1762028385547,5.20086589,186.49,186.48,75.46]
[1762028388046,2.9,186.48,186.45,2.14]
[1762028388248,5.20086589,186.47,186.45,2.14]
[1762028388455,2.30086589,186.46,186.45,2.14]
[1762028390957,5.20086589,186.46,186.45,2.14]
[1762028391456,5.20086589,186.46,186.44,75.46]
[1762028391656,2.30086589,186.45,186.44,77.6]
[1762028391857,2.30086589,186.45,186.44,81.92596804]
[1762028392459,2.30086589,186.45,186.44,79.78596804]
[1762028392460,5.20086589,186.45,186.44,79.78596804]
[1762028392762,5.20086589,186.45,186.44,77.6]
[1762028393849,2.30086589,186.45,186.44,77.6]
[1762028394262,2.30086589,186.45,186.44,81.92581014]
[1762028394466,2.29923444,186.45,186.44,79.78581014]
[1762028394957,2.29924056,186.45,186.44,79.78581014]
[1762028395157,2.29924056,186.45,186.44,81.92581014]
[1762028396055,2.9,186.49,186.45,2.14]
[1762028396251,2.9,186.47,186.45,2.14]
[1762028396456,2.29942091,186.46,186.45,2.14]
[1762028396761,2.2995372,186.46,186.45,6.44969553]
[1762028397873,2.9,186.47,186.45,6.44969553]
[1762028398170,2.29953799,186.46,186.45,2.14]
[1762028398371,2.29953799,186.46,186.45,6.44969794]
[1762028400581,2.29953799,186.46,186.45,2.14]
[1762028401060,2.9,186.47,186.45,2.14]
[1762028401264,2.29932562,186.46,186.45,2.14]
[1762028402267,2.29914603,186.46,186.45,2.14]
[1762028403174,2.29915211,186.46,186.45,2.14]
[1762028404467,2.29901298,186.46,186.45,2.14]
[1762028405375,2.29899127,186.46,186.45,2.14]
[1762028406165,2.29900019,186.46,186.45,2.14]
[1762028406578,5.25900019,186.46,186.45,2.14]
[1762028406777,5.25900019,186.46,186.44,77.6]
[1762028407077,2.29900019,186.45,186.44,77.6]
[1762028407872,2.29892438,186.45,186.44,77.6]
[1762028408577,2.29882183,186.45,186.44,77.6]
[1762028409074,5.25882183,186.45,186.41,169.95990217]
[1762028409279,5.25882183,186.44,186.42,81.90955936]
[1762028409573,2.29882183,186.43,186.42,77.6]
[1762028409776,2.29882183,186.43,186.42,81.90914734]
[1762028409973,2.96,186.5,186.43,2.14]
[1762028410178,5.2586815,186.49,186.45,2.14]
[1762028410378,5.2586815,186.48,186.46,2.14]
[1762028410573,2.29866935,186.47,186.46,2.14]
[1762028410883,2.29866939,186.47,186.46,2.14]
[1762028411176,2.29871043,186.47,186.46,2.14]
[1762028411371,2.29865138,186.47,186.46,2.14]
[1762028414083,2.96,186.5,186.46,2.14]
[1762028414273,2.29843704,186.49,186.46,2.14]
[1762028414472,2.29843704,186.48,186.46,2.14]
[1762028414673,2.29843704,186.47,186.46,2.14]
[1762028421177,2.96,186.5,186.46,2.14]
[1762028421378,2.78,186.48,186.46,2.14]
[1762028421581,2.2988348,186.47,186.46,2.14]
[1762028422383,2.29901108,186.47,186.46,6.44860683]
[1762028423289,2.29918304,186.47,186.46,6.44860683]
[1762028423689,2.29918304,186.47,186.46,2.14]
[1762028423879,2.29918304,186.47,186.46,6.44812215]
[1762028424079,2.29918304,186.47,186.46,2.14]
[1762028424281,2.29936611,186.47,186.46,6.44811109]
[1762028425983,2.78,186.48,186.46,6.44811109]
[1762028426190,2.29975278,186.47,186.46,2.14]
[1762028426387,2.29998222,186.47,186.46,6.46168581]
[1762028428378,2.78,186.51,186.47,2.14]
[1762028428584,2.30026932,186.5,186.49,2.14]
[1762028429191,5.08026937,186.5,186.49,2.14]
[1762028429786,5.08026937,186.5,186.48,75.46]
[1762028429787,5.08027429,186.5,186.48,75.46]
[1762028429986,2.30027429,186.49,186.48,77.6]
[1762028431293,2.78,186.5,186.48,77.6]
[1762028431494,2.30016293,186.49,186.48,77.6]
[1762028433093,2.78,186.52,186.48,75.46]
[1762028433291,2.78,186.49,186.48,75.46]
[1762028433591,5.08005444,186.49,186.48,75.46]
[1762028434085,5.08005444,186.49,186.48,77.6]
[1762028434595,5.07987548,186.49,186.48,77.6]
[1762028435695,2.29987548,186.49,186.48,77.6]
[1762028436897,2.29961543,186.49,186.48,77.6]
[1762028437498,2.29953347,186.49,186.48,77.6]
[1762028439001,2.78,186.52,186.49,2.14]
[1762028439208,2.29969382,186.51,186.49,2.14]
[1762028439390,2.29969382,186.5,186.49,2.14]
[1762028441899,2.29938792,186.5,186.49,2.14]
[1762028442393,2.78,186.52,186.49,2.14]
[1762028442594,2.78,186.5,186.49,2.14]
[1762028442796,5.07929828,186.5,186.49,2.14]
[1762028444302,2.78,186.5,186.49,2.14]
[1762028444602,5.07804471,186.5,186.49,2.14]
[1762028444799,2.29804471,186.5,186.49,2.14]
[1762028445593,2.29804755,186.5,186.49,2.14]
[1762028447497,2.29804755,186.5,186.49,6.45534468]
[1762028452514,2.78,186.53,186.5,2.14]
[1762028452719,2.29658761,186.52,186.5,2.14]
[1762028452919,2.29658761,186.51,186.5,2.14]
[1762028453227,2.29658761,186.51,186.5,81.89097278]
[1762028453609,2.29658761,186.51,186.5,77.58]
[1762028453821,2.78,186.53,186.51,2.14]
[1762028454014,2.2963926,186.52,186.51,2.14]
[1762028454212,2.78,186.53,186.51,2.14]
[1762028454414,2.29634936,186.52,186.51,2.14]
[1762028455918,2.78,186.53,186.51,2.14]
[1762028456115,2.29609162,186.52,186.51,2.14]
[1762028456924,2.29596469,186.52,186.51,2.14]
[1762028457323,2.2960337,186.52,186.51,2.14]
[1762028457523,2.29587464,186.52,186.51,2.14]
[1762028458423,2.78,186.53,186.51,2.14]
[1762028458720,2.29582609,186.52,186.51,2.14]
[1762028459525,2.78,186.53,186.51,2.14]
[1762028459730,2.29576511,186.52,186.51,2.14]
[1762028461820,2.29581703,186.52,186.51,2.14]
[1762028462230,2.29583433,186.52,186.51,2.14]
[1762028464323,2.29548205,186.52,186.51,2.14]
[1762028465627,2.2955298,186.52,186.51,2.14]
[1762028466927,2.29562297,186.52,186.51,2.14]
[1762028467627,2.29563414,186.52,186.51,2.14]
[1762028468836,2.29563414,186.52,186.51,6.45567597]
[1762028469020,2.95,186.56,186.52,2.14]
[1762028469220,5.2456342,186.55,186.52,2.14]
[1762028469422,2.2956342,186.54,186.52,2.14]
[1762028469623,2.2956342,186.53,186.52,2.14]
[1762028470328,2.29545251,186.53,186.52,2.14]
[1762028471326,2.29540849,186.53,186.52,2.14]
[1762028471726,2.95,186.57,186.53,2.14]
[1762028471926,5.24522375,186.56,186.53,2.14]
[1762028472127,2.29522375,186.55,186.53,2.14]
[1762028472335,2.29522375,186.54,186.53,2.14]
[1762028473937,2.95,186.56,186.53,2.14]
[1762028490741,2.95,186.56,186.52,75.4]
[1762028491047,2.95,186.56,186.52,77.54]
[1762028491943,2.95,186.56,186.53,2.14]
[1762028492945,2.95,186.56,186.46,6.66365517]
[1762028492946,2.95,186.56,186.47,2.14]
[1762028493147,2.95,186.56,186.48,6.35935593]
[1762028493347,2.95,186.56,186.48,2.14]
[1762028503352,2.95,186.56,186.49,4.21737796]
[1762028503559,2.95,186.56,186.49,2.14]
[1762028505364,2.95,186.56,186.49,4.21077558]
[1762028507162,2.95,186.56,186.47,4.21819067]
[1762028507354,2.95,186.56,186.45,4.21819067]
[1762028507559,2.95,186.56,186.44,237.43202712]
[1762028507858,2.95,186.56,186.45,4.21957923]
[1762028508059,2.95,186.56,186.45,2.14]
[1762028509866,2.95,186.53,186.44,235.29202712]
[1762028514472,2.95,186.53,186.44,237.43202712]
[1762028518780,2.95,186.53,186.44,161.91202712]
[1762028520377,2.95,186.53,186.45,2.14]
[1762028520973,2.95,186.53,186.48,2.14]
[1762028522674,2.95,186.55,186.51,2.14]
[1762028528986,2.8,186.56,186.54,2.14]
[1762028531991,2.8,186.61,186.54,2.14]
[1762028542404,2.8,186.61,186.51,4.21077558]
[1762028542602,2.7,186.6,186.51,4.21077558]
[1762028543688,2.07077558,186.58,186.48,2.07077558]
[1762028544006,2.7,186.57,186.49,2.14]
[1762028564017,2.87,186.55,186.49,2.14]
[1762028564199,2.87,186.53,186.49,2.14]
[1762028564404,2.28930876,186.52,186.49,2.14]
[1762028564605,2.28930876,186.51,186.49,2.14]
[1762028564812,2.28930876,186.5,186.49,2.14]
[1762028566109,2.28930876,186.5,186.49,6.36973977]
[1762028566510,2.29058064,186.5,186.49,6.36973977]
[1762028567017,2.29058064,186.5,186.49,7.44973977]
[1762028567810,1.63856476,186.5,186.49,7.44973977]
[1762028568005,2.87,186.59,186.5,2.14]
[1762028568223,2.87,186.59,186.52,2.14]
[1762028571118,2.87,186.59,186.53,4.196026]
[1762028571311,2.87,186.59,186.54,2.14]
[1762028580028,19.25049355,186.67,186.54,2.14]
[1762028580029,2.87,186.65,186.54,2.14]
[1762028582220,2.87,186.65,186.55,2.14]
[1762028588330,2.74,186.67,186.59,3.23561929]
[1762028588522,2.74,186.69,186.6,2.14]
[1762028590437,2.74,186.69,186.61,2.14]
[1762028604340,65.40236143,186.71,186.61,2.14]
[1762028604741,68.17236143,186.71,186.61,2.14]
[1762028605636,2.77,186.7,186.61,2.14]
[1762028608842,2.77,186.7,186.62,2.14]
[1762028609930,2.77,186.69,186.62,2.14]
[1762028610334,2.77,186.69,186.58,2.14]
[1762028610638,2.77,186.66,186.58,2.14]
[1762028619272,2.77,186.66,186.59,2.12]
[1762028622065,2.77,186.66,186.59,6.30672941]
[1762028622371,2.77,186.66,186.6,2.12]
[1762028624566,2.77,186.66,186.61,2.12]
[1762028633279,2.77,186.66,186.62,4.20310745]
[1762028633582,2.77,186.66,186.62,2.12]
[1762028640887,2.76,186.69,186.62,2.12]
[1762028641185,2.76,186.69,186.64,2.12]
[1762028642683,2.76,186.69,186.66,2.12]
[1762028646189,65.40236143,186.71,186.68,2.12]
[1762028646488,68.16236143,186.71,186.68,2.12]
[1762028646782,2.92,186.7,186.68,2.12]
[1762028647194,65.40236143,186.71,186.68,2.12]
[1762028647984,68.32236143,186.71,186.68,2.12]
[1762028648989,65.40236143,186.71,186.68,2.12]
[1762028651496,65.40236143,186.71,186.69,2.14]
[1762028651691,68.32236143,186.71,186.69,2.14]
[1762028653287,65.40236143,186.71,186.69,2.14]
[1762028655296,65.40236143,186.71,186.69,77.66]
[1762028655487,65.40236143,186.71,186.7,2.14]
[1762028663003,65.40236143,186.71,186.7,77.62]
[1762028664403,69.56785202,186.71,186.7,77.62]
[1762028664809,65.40236143,186.71,186.7,77.62]
[1762028665009,69.56768348,186.71,186.7,77.62]
[1762028665307,69.56768348,186.71,186.7,2.14]
[1762028665496,69.56768348,186.71,186.7,77.62]
[1762028665695,69.56754751,186.71,186.7,77.62]
[1762028666802,69.56748376,186.71,186.7,77.62]
[1762028670010,69.56748376,186.71,186.7,2.14]
[1762028670200,69.56748376,186.71,186.7,77.58]
[1762028671500,69.56721411,186.71,186.7,77.58]
[1762028671905,65.40236143,186.71,186.7,77.58]
[1762028672210,69.56686913,186.71,186.7,77.58]
[1762028672604,69.56657539,186.71,186.7,77.58]
[1762028675004,69.56687128,186.71,186.7,77.58]
[1762028675206,69.56731217,186.71,186.7,77.58]
[1762028675417,2.8,186.7,186.66,2.14]
[1762028675714,2.8,186.7,186.68,2.14]
[1762028675715,4.16582793,186.69,186.68,2.14]
[1762028676104,4.16582793,186.69,186.68,6.348861]
[1762028676908,4.16582793,186.69,186.68,2.14]
[1762028677914,4.16582793,186.69,186.68,6.35197371]
[1762028678709,4.16803615,186.69,186.68,6.35197371]
[1762028680612,4.17051817,186.69,186.68,6.35197371]
[1762028680813,7.00051817,186.69,186.67,77.58]
[1762028681020,4.17051817,186.68,186.67,77.58]
[1762028681216,4.17051817,186.68,186.67,81.79554396]
[1762028681414,7.00051817,186.68,186.67,79.65554396]
[1762028681814,7.00051817,186.68,186.67,81.79554396]
[1762028682014,4.17051817,186.68,186.67,81.79554396]
[1762028684418,4.17051817,186.68,186.67,6.35554396]
[1762028684624,4.17051817,186.68,186.67,81.79554396]
[1762028685219,4.17795011,186.68,186.67,81.79554396]
[1762028687216,7.00795011,186.68,186.67,79.65554396]
[1762028687417,7.00795011,186.68,186.67,81.79554396]
[1762028687925,4.17795011,186.68,186.67,81.80617475]
[1762028688929,7.00795011,186.68,186.67,79.66617475]
[1762028689320,2.83,186.68,186.67,79.66617475]
[1762028689521,7.0111226,186.68,186.67,79.66617475]
[1762028689925,2.83,186.67,186.63,14.30046139]
[1762028690224,2.83,186.65,186.63,84.78319449]
[1762028690424,7.01296745,186.64,186.63,84.78319449]
[1762028691626,4.18296745,186.64,186.63,86.92319449]
[1762028691930,4.18296745,186.64,186.63,96.19043387]
[1762028692234,6.745e-05,186.64,186.63,96.19043387]
[1762028692730,65.40236143,186.71,186.64,2.14]
[1762028692929,68.23236143,186.71,186.66,2.14]
[1762028693228,68.23236143,186.71,186.68,2.14]
[1762028695030,2.83,186.7,186.68,2.14]
[1762028697826,68.23236143,186.71,186.68,2.14]
[1762028699430,2.83,186.7,186.68,2.14]
[1762028701034,2.83,186.7,186.67,75.54]
[1762028701339,2.83,186.7,186.63,9.34319449]
[1762028701532,2.83,186.7,186.66,75.5]
[1762028702240,2.83,186.69,186.66,75.5]
[1762028704636,2.83,186.69,186.64,75.54]
[1762028709845,2.83,186.69,186.65,2.14]
[1762028719355,2.83,186.69,186.64,75.54]
[1762028719655,2.83,186.69,186.65,75.56]
[1762028720452,2.69,186.66,186.65,75.56]
[1762028723445,2.69,186.66,186.63,9.34319449]
[1762028723446,2.71,186.65,186.63,9.34319449]
[1762028724549,2.71,186.68,186.64,2.14]
[1762028724950,2.71,186.68,186.63,11.48319449]
[1762028725150,2.71,186.68,186.63,9.34319449]
[1762028725754,2.71,186.68,186.63,11.48319449]
[1762028726855,2.71,186.68,186.63,9.34319449]
[1762028727055,2.71,186.68,186.63,11.48319449]
[1762028735160,2.71,186.68,186.63,9.34319449]
[1762028735363,2.71,186.68,186.63,11.48319449]
[1762028735668,2.71,186.68,186.64,2.14]
[1762028739164,2.68,186.7,186.64,2.14]
[1762028741363,2.68,186.7,186.65,2.14]
[1762028750177,68.08236143,186.71,186.65,2.14]
[1762028750475,2.68,186.7,186.65,2.14]
[1762028758878,2.68,186.7,186.63,9.34319449]
[1762028759085,65.40236143,186.71,186.63,9.34319449]
[1762028759086,2.68,186.68,186.63,9.34319449]
[1762028759477,2.68,186.65,186.63,9.34319449]
[1762028765092,2.68,186.65,186.57,2.14]
[1762028765296,2.68,186.61,186.57,2.14]
[1762028768891,2.76,186.64,186.57,2.14]
[1762028769199,2.76,186.66,186.59,2.14]
[1762028770796,2.76,186.66,186.57,2.14]
[1762028772900,2.76,186.66,186.59,2.14]
[1762028773698,2.76,186.66,186.6,2.14]
[1762028776797,2.76,186.66,186.57,2.14]
[1762028776998,2.76,186.66,186.58,4.20694859]
[1762028777198,2.76,186.66,186.58,2.14]
[1762028777399,2.76,186.63,186.58,2.14]
[1762028783917,2.93,186.67,186.58,2.14]
[1762028786620,2.93,186.67,186.59,2.14]
[1762028792021,2.93,186.67,186.6,2.14]
[1762028802228,2.93,186.67,186.63,9.34319449]
[1762028805031,2.93,186.67,186.63,11.48319449]
[1762028805932,2.93,186.67,186.63,9.34319449]
[1762028807533,2.93,186.67,186.63,11.48319449]
[1762028810436,2.93,186.67,186.64,2.14]
[1762028811040,2.93,186.67,186.63,11.48319449]
[1762028811341,2.93,186.67,186.64,2.14]
[1762028814342,2.93,186.67,186.63,9.34319449]
[1762028814545,2.93,186.67,186.63,11.48319449]
[1762028815838,2.93,186.67,186.64,2.14]
[1762028818746,2.82,186.7,186.64,2.14]
[1762028837968,65.40236143,186.71,186.64,2.14]
[1762028839860,68.36236143,186.71,186.64,2.14]
[1762028845170,2.69,186.7,186.64,2.14]